bitfinex/quotes_ETHUSD_20240711
["timestamp","ask_amount","ask_price","bid_price","bid_amount"]
[1720710156345,0.65887704,3157.6,3156.6,3.16794]
[1720710156547,0.65887704,3157.5,3156.6,3.16794]
[1720710156773,1.0572902,3157.6,3156.7,3.16782]
[1720710156983,0.65887704,3157.5,3156.7,3.16782]
[1720710157251,0.65887704,3157.6,3157.0,3.16749]
[1720710157454,0.65887704,3157.5,3157.0,6.33498]
[1720710157992,0.65887704,3157.6,3157.0,6.33498]
[1720710158340,1.09670558,3157.5,3157.0,6.33498]
[1720710158536,0.65887704,3157.6,3157.0,6.33498]
[1720710158742,0.65887704,3157.7,3157.1,3.16745]
[1720710158941,1.09669161,3157.6,3157.1,3.16745]
[1720710159198,0.65887704,3157.7,3157.1,3.16745]
[1720710159351,1.09669331,3157.6,3157.1,3.16745]
[1720710160586,0.65887704,3157.7,3157.1,3.16745]
[1720710160747,1.09668857,3157.6,3157.1,3.16745]
[1720710160939,1.09671404,3157.5,3157.1,3.16745]
[1720710161142,1.09671404,3157.4,3157.1,3.16745]
[1720710161377,1.09671404,3157.3,3157.1,3.16745]
[1720710161577,1.09671404,3157.6,3157.1,3.16745]
[1720710161754,1.09671403,3157.5,3157.1,3.16745]
[1720710161954,1.09671403,3157.4,3157.1,3.16745]
[1720710162155,1.09671403,3157.3,3157.1,3.16745]
[1720710162349,0.65887704,3157.7,3156.9,3.16759]
[1720710162588,0.65887704,3157.7,3157.0,3.16748]
[1720710162589,1.09671405,3157.6,3157.0,3.16748]
[1720710162891,1.09671405,3157.5,3157.1,2.3076]
[1720710163108,0.65887704,3158.2,3157.4,2.223]
[1720710163280,1.09643284,3158.1,3157.7,3.16686]
[1720710163477,1.09643284,3158.1,3157.9,3.1666]
[1720710163670,0.65887704,3158.7,3158.0,3.16656]
[1720710163867,1.7552434,3158.6,3158.0,3.16656]
[1720710164071,1.09636636,3158.5,3158.0,3.16656]
[1720710165266,1.09636636,3158.5,3157.6,3.16689]
[1720710165464,1.09636636,3158.4,3157.8,6.33336]
[1720710165802,1.09636636,3158.4,3157.8,3.16667]
[1720710166306,1.09636636,3158.4,3157.9,3.16658]
[1720710166481,1.09636636,3158.4,3157.8,3.16676]
[1720710166890,0.17552434,3158.5,3157.8,3.1667]
[1720710167209,1.09641499,3158.4,3157.8,3.1667]
[1720710167411,1.09641499,3158.3,3157.8,6.3334]
[1720710167612,0.17552434,3158.5,3157.9,3.16664]
[1720710167816,1.0964101,3158.4,3157.9,3.16664]
[1720710168118,1.0964101,3158.3,3157.7,3.16677]
[1720710168280,1.0964101,3158.6,3157.7,3.16677]
[1720710168479,1.0964101,3158.6,3157.5,0.2]
[1720710168480,2.3176,3158.4,3157.5,0.2]
[1720710168700,1.0964101,3158.3,3157.5,0.2]
[1720710168907,3.16661,3158.0,3157.5,0.2]
[1720710169103,1.0964101,3157.9,3157.5,0.2]
[1720710169786,1.0964101,3158.1,3157.5,0.2]
[1720710170110,1.0964101,3158.0,3157.5,3.36705]
[1720710170318,0.34140101,3158.2,3157.5,3.36705]
[1720710170497,1.09657952,3157.9,3157.5,3.36705]
[1720710170812,0.34140101,3158.2,3157.5,0.2]
[1720710171115,1.51325213,3158.1,3157.5,0.2]
[1720710171276,1.09658103,3158.0,3157.5,0.2]
[1720710171472,3.24587974,3157.9,3157.5,0.2]
[1720710171710,5.56797,3157.7,3157.5,0.2]
[1720710171898,1.09658103,3157.6,3157.5,0.2]
[1720710172111,1.76303613,3157.6,3157.5,0.2]
[1720710172324,1.09658103,3157.6,3157.5,0.2]
[1720710172487,1.09658103,3157.8,3157.5,0.2]
[1720710172679,1.09664955,3157.7,3157.5,0.2]
[1720710172878,3.82557994,3158.0,3157.5,0.2]
[1720710173088,1.75566288,3157.9,3157.5,0.2]
[1720710173323,0.49222229,3157.8,3157.5,0.2]
[1720710173484,2.24789086,3157.8,3157.5,0.2]
[1720710173828,1.09664863,3157.7,3157.5,0.2]
[1720710174131,0.49222229,3157.8,3157.5,0.2]
[1720710174419,1.75565979,3157.7,3157.5,0.2]
[1720710174630,2.29855886,3157.6,3157.5,0.2]
[1720710174827,1.20191901,3157.6,3157.5,0.2]
[1720710175126,1.63818767,3157.6,3157.5,0.2]
[1720710175305,2.62979467,3157.6,3157.5,0.2]
[1720710175723,1.63818767,3157.6,3157.5,0.2]
[1720710175886,2.08865303,3157.6,3157.5,0.2]
[1720710176425,1.09672346,3157.6,3157.5,0.2]
[1720710176595,1.75834327,3157.6,3157.5,0.2]
[1720710176931,0.66161981,3157.7,3157.5,0.2]
[1720710177102,1.09662514,3157.6,3157.5,0.2]
[1720710177306,1.75824495,3157.6,3157.5,0.2]
[1720710177503,1.75822287,3157.6,3157.5,0.2]
[1720710178313,1.09660306,3157.6,3157.5,0.2]
[1720710178510,1.75847471,3157.6,3157.5,0.2]
[1720710178728,1.09660306,3157.6,3157.5,0.2]
[1720710178927,1.75848497,3157.6,3157.5,0.2]
[1720710179129,1.09660306,3157.6,3157.5,0.2]
[1720710180029,2.08853263,3157.6,3157.5,0.2]
[1720710180236,2.08856576,3157.6,3157.5,0.2]
[1720710180550,1.43729676,3157.6,3157.5,0.2]
[1720710180717,2.75540581,3157.6,3157.5,0.2]
[1720710181304,8.59596339,3157.6,3157.5,0.2]
[1720710181508,6.94092592,3157.6,3157.5,0.2]
[1720710181729,5.42898296,3157.6,3157.5,0.2]
[1720710182045,3.77396592,3157.6,3157.5,0.2]
[1720710182207,1.43736592,3157.6,3157.5,0.2]
[1720710182411,1.09670535,3157.6,3157.5,0.2]
[1720710182733,2.09061107,3157.6,3157.5,0.2]
[1720710183058,1.65657814,3157.9,3157.5,3.36706]
[1720710183059,0.66261462,3157.9,3157.5,3.36706]
[1720710183209,0.66261462,3157.9,3157.8,3.16676]
[1720710183402,0.66261462,3158.2,3157.9,3.16661]
[1720710183609,1.6565615,3158.5,3158.2,3.16636]
[1720710183903,0.66261462,3158.5,3158.2,3.16636]
[1720710185750,0.36261462,3158.5,3158.2,3.16636]
[1720710186850,0.99394688,3158.7,3158.2,3.16636]
[1720710187031,1.09630444,3158.6,3158.4,3.16615]
[1720710187206,1.32526251,3158.9,3158.5,3.16605]
[1720710187207,0.99394688,3158.9,3158.5,3.16605]
[1720710187406,1.09624393,3158.8,3158.5,3.16605]
[1720710187638,0.99394688,3158.9,3158.5,3.16605]
[1720710187639,1.09624393,3158.7,3158.5,3.16605]
[1720710187851,0.99394688,3158.9,3158.4,3.16615]
[1720710188066,0.99394688,3158.9,3157.8,3.092581]
[1720710188067,1.09624694,3158.8,3158.0,3.16647]
[1720710188270,1.09624694,3158.7,3158.0,3.16647]
[1720710188568,1.09624694,3158.7,3158.1,3.16636]
[1720710188744,1.09624694,3158.7,3158.2,3.16635]
[1720710189073,0.99394688,3158.8,3158.2,3.16635]
[1720710189237,1.09626634,3158.7,3158.2,6.965932]
[1720710189446,0.99394688,3158.9,3158.2,3.799582]
[1720710189620,1.32526251,3159.0,3158.2,3.799572]
[1720710189621,2.09021234,3158.8,3158.2,3.799572]
[1720710189973,1.09626546,3158.7,3158.2,3.799572]
[1720710190467,1.09626546,3158.7,3158.2,0.633282]
[1720710190779,4.41661234,3158.7,3157.4,2.223]
[1720710191069,3.16626,3158.3,3157.2,5.60419]
[1720710191232,2.09021234,3158.2,3157.3,3.16725]
[1720710191566,2.09021234,3158.1,3157.3,3.16725]
[1720710191765,1.09626546,3158.0,3157.3,3.16725]
[1720710192276,0.99394688,3158.1,3157.3,3.16725]
[1720710192427,1.09652104,3158.0,3157.3,3.16725]
[1720710192625,0.99394688,3158.1,3157.3,3.16725]
[1720710192964,1.09651789,3158.0,3157.3,3.16725]
[1720710193171,0.99333226,3158.1,3157.3,3.16725]
[1720710193384,4.49080302,3158.2,3157.5,3.36704]
[1720710193385,2.08984966,3158.0,3157.5,3.36704]
[1720710193676,0.99333226,3158.1,3157.5,4.020469]
[1720710193835,1.0964963,3158.0,3157.5,0.2]
[1720710194175,2.0898959,3157.9,3157.5,0.2]
[1720710194345,2.16907242,3157.8,3157.5,0.2]
[1720710194546,1.17582702,3157.7,3157.5,0.2]
[1720710194751,1.09669021,3157.6,3157.5,0.2]
[1720710194949,2.81442218,3157.6,3157.5,0.2]
[1720710195273,2.42113323,3157.6,3157.5,0.2]
[1720710195519,1.09670345,3157.6,3157.5,0.2]
[1720710195834,2.08932721,3157.6,3157.5,0.2]
[1720710196295,1.09670345,3157.6,3157.5,0.2]
[1720710198160,2.09033916,3157.6,3157.5,0.2]
[1720710198360,1.09670345,3157.6,3157.5,0.2]
[1720710198666,1.32474978,3157.7,3157.5,0.2]
[1720710198991,3.16674,3157.9,3157.5,0.2]
[1720710198992,2.09061963,3157.6,3157.5,0.2]
[1720710199854,0.99397521,3157.6,3157.5,0.2]
[1720710200380,1.32856789,3157.6,3157.5,0.2]
[1720710200751,2.3230397,3157.6,3157.5,0.2]
[1720710200952,2.0911135,3157.6,3157.5,0.2]
[1720710201485,0.99447181,3157.6,3157.5,0.2]
[1720710202297,0.9945664,3157.6,3157.5,0.2]
[1720710202498,1.09665365,3157.6,3157.5,0.2]
[1720710202700,1.09665454,3157.6,3157.5,0.2]
[1720710203001,3.162989,3157.6,3157.5,0.2]
[1720710203243,7.91781841,3157.6,3157.5,0.2]
[1720710203446,3.16717,3157.4,3156.6,3.16795]
[1720710203663,0.66350281,3156.9,3156.4,3.16809]
[1720710203835,0.66350281,3156.8,3156.4,3.16809]
[1720710204150,0.66350281,3156.6,3156.1,3.16844]
[1720710204303,0.66350281,3156.6,3156.1,6.33684]
[1720710204509,0.66350281,3156.6,3156.1,3.1684]
[1720710204722,0.66350281,3156.6,3156.2,3.16826]
[1720710205357,0.66338678,3156.6,3155.9,8.7902]
[1720710205507,0.99508017,3156.7,3155.9,8.7902]
[1720710205508,0.66338678,3156.4,3156.0,3.1685]
[1720710207356,0.66338678,3156.4,3155.4,5.54999]
[1720710207533,0.66338678,3156.2,3155.4,5.54999]
[1720710207743,0.66338678,3156.2,3155.6,6.33778]
[1720710207921,0.66338678,3156.1,3155.6,7.209648]
[1720710208120,0.66338678,3156.1,3155.6,0.871868]
[1720710208342,0.66338678,3156.1,3155.4,5.55001]
[1720710208566,0.66338678,3156.1,3155.4,3.16911]
[1720710208869,0.66338678,3155.9,3155.0,5.62691]
[1720710209046,0.66338678,3155.7,3155.1,3.16946]
[1720710209253,0.66338678,3155.7,3154.9,3.16959]
[1720710209474,0.66338678,3155.7,3154.5,2.3766]
[1720710209475,0.66338678,3155.6,3154.6,3.16995]
[1720710209791,0.66338678,3155.6,3154.4,6.34027]
[1720710209792,0.66338678,3155.3,3154.4,6.34027]
[1720710209937,0.66338678,3155.3,3154.0,7.77014]
[1720710209938,3.83285678,3155.1,3154.0,5.39355]
[1720710210137,3.83285678,3155.1,3154.1,3.17047]
[1720710210340,0.66338678,3155.0,3154.1,3.17047]
[1720710210784,3.83295678,3155.0,3153.8,3.17069]
[1720710211083,3.9694307,3154.9,3153.9,3.17061]
[1720710211436,3.9694307,3154.9,3153.9,3.17059]
[1720710211837,0.7997507,3154.9,3154.1,3.1704]
[1720710212083,0.65991856,3155.2,3154.0,2.223]
[1720710212293,6.23034856,3155.7,3154.5,3.17001]
[1720710212507,3.16898,3155.6,3154.5,3.17001]
[1720710212656,5.57043,3155.7,3154.5,3.17001]
[1720710212979,3.16914,3155.5,3154.5,3.17001]
[1720710213185,0.316914,3155.4,3154.5,3.17001]
[1720710214149,0.316914,3155.4,3154.5,6.33998]
[1720710214356,3.16898,3155.6,3154.5,6.33998]
[1720710214564,2.4015,3155.7,3154.6,3.16995]
[1720710215002,2.4015,3155.7,3154.0,6.13852]
[1720710215003,3.16871,3155.9,3154.8,3.21585674]
[1720710215209,3.16848,3156.1,3154.9,3.16959]
[1720710215362,0.65991856,3156.2,3155.1,3.16946]
[1720710215363,3.16837,3156.2,3155.1,3.16946]
[1720710215697,5.6414,3156.3,3155.2,3.21161859]
[1720710215698,2.4731,3156.3,3155.2,3.21161859]
[1720710216072,2.4731,3156.3,3155.4,3.16913]
[1720710216272,5.64137,3156.3,3155.3,3.16924]
[1720710216477,6.522318,3156.3,3155.5,0.04214999]
[1720710216675,6.522318,3156.3,3155.4,0.04217126]
[1720710216878,6.522318,3156.3,3154.9,3.36966]
[1720710216879,3.16878,3155.8,3155.6,0.04212871]
[1720710217210,3.16876,3155.9,3154.9,0.2]
[1720710217211,3.1687,3155.9,3154.9,0.2]
[1720710217356,3.1687,3155.9,3155.0,0.04225638]
[1720710217357,3.16888,3155.7,3155.0,0.04225638]
[1720710218968,0.07923356,3155.6,3155.0,0.04225638]
[1720710219515,3.16907,3155.5,3155.0,0.04225638]
[1720710219673,0.07924128,3155.4,3155.0,0.04225638]
[1720710220388,3.16947,3155.1,3155.0,0.04225638]
[1720710220706,6.33914,3155.0,3154.9,0.4]
[1720710221002,12.00367307,3155.0,3154.9,0.4]
[1720710221315,8.75484,3155.0,3154.9,0.4]
[1720710222205,3.16957,3155.0,3154.9,0.4]
[1720710222566,6.33888,3155.2,3154.9,0.4]
[1720710222865,4.05492857,3155.2,3154.9,0.4]
[1720710223067,3.16948,3155.1,3154.9,0.4]
[1720710223701,0.88555857,3155.2,3154.9,0.4]
[1720710223902,4.05501857,3155.2,3154.9,0.4]
[1720710224105,3.16957,3155.0,3154.9,0.4]
[1720710224268,6.74465286,3155.0,3154.9,0.4]
[1720710224765,6.74465286,3155.0,3154.9,0.11020585]
[1720710225267,6.33954,3154.8,3153.6,3.17093]
[1720710225466,6.33954,3154.8,3153.6,6.34184]
[1720710225678,6.33954,3154.8,3153.6,3.17091]
[1720710226184,11.84421,3154.8,3153.2,0.11620341]
[1720710226382,11.84421,3154.8,3153.2,3.28758341]
[1720710226383,3.17046,3154.2,3153.2,3.28758341]
[1720710226577,3.17055,3154.1,3153.3,0.02880262]
[1720710226785,3.17078,3153.8,3153.3,0.02880262]
[1720710226983,3.17078,3153.8,3153.2,0.11620341]
[1720710226984,2.97506476,3153.8,3153.2,0.11620341]
[1720710227214,3.17088,3153.7,3153.3,0.02880262]
[1720710227524,3.25016475,3153.7,3153.2,0.11620341]
[1720710227681,4.11843723,3153.7,3153.4,0.04643566]
[1720710227887,4.11843723,3153.7,3153.3,0.04645933]
[1720710228127,3.17098,3153.6,3153.2,0.11620341]
[1720710228338,6.34256,3153.3,3153.2,0.11620341]
[1720710231022,3.1712,3153.4,3153.2,0.11620341]
[1720710231881,6.34203,3153.6,3153.2,0.11620341]
[1720710232081,3.17098,3153.6,3153.2,0.11620341]
[1720710232283,3.17122,3153.4,3153.2,0.11620341]
[1720710232514,3.17098,3153.6,3153.2,0.11620341]
[1720710232733,3.17059,3154.0,3153.3,0.03867032]
[1720710233023,3.17021,3154.4,3153.4,3.17117]
[1720710233326,3.17042,3154.2,3153.5,0.36339943]
[1720710233498,3.17092,3153.7,3153.5,0.0424154]
[1720710233694,3.17097,3153.6,3153.5,0.0424154]
[1720710233895,3.17111,3153.5,3153.2,0.11620341]
[1720710234226,3.17111,3153.5,3153.3,0.03852921]
[1720710234385,3.17118,3153.4,3153.3,0.03852921]
[1720710234601,3.80531,3153.5,3153.2,0.11620341]
[1720710234797,3.17029563,3153.5,3153.3,0.03851667]
[1720710235030,3.17029563,3153.5,3153.2,0.11620341]
[1720710235198,3.17029563,3153.5,3153.3,0.03851667]
[1720710235537,3.17104,3153.6,3153.2,0.11620341]
[1720710235837,3.17091,3153.7,3153.2,0.11620341]
[1720710236000,3.17115,3153.5,3153.3,0.03851667]
[1720710236195,3.17118,3153.4,3153.3,0.03851667]
[1720710236540,0.317091,3153.7,3153.2,0.11620341]
[1720710236541,3.17128,3153.3,3153.2,0.11620341]
[1720710237755,6.34256,3153.3,3153.2,0.11620341]
[1720710238411,4.26968342,3153.3,3153.2,0.11620341]
[1720710238606,3.17128,3153.3,3153.2,0.11620341]
[1720710239127,6.34256,3153.3,3153.2,0.11620341]
[1720710239439,3.17128,3153.3,3153.2,0.11620341]
[1720710239645,3.17124,3153.4,3153.2,0.11620341]
[1720710240423,3.488364,3153.4,3153.2,0.11620341]
[1720710241027,2.668,3154.0,3153.2,0.11620341]
[1720710241232,3.17069,3153.9,3153.3,0.02866182]
[1720710241403,3.17118,3153.4,3153.3,0.02866182]
[1720710241743,6.34256,3153.3,3153.2,0.11620341]
[1720710241944,6.976816,3153.3,3153.2,0.11620341]
[1720710242116,6.976816,3153.3,3153.2,0.14487943]
[1720710242301,6.976816,3153.3,3153.2,0.11620341]
[1720710242907,6.97598654,3153.3,3153.2,0.11620341]
[1720710246243,6.34173054,3153.3,3153.2,0.11620341]
[1720710246541,7.44004392,3153.3,3153.2,0.11620341]
[1720710247707,10.61132392,3153.3,3153.2,0.11620341]
[1720710248284,12.86362392,3153.3,3153.2,0.11620341]
[1720710249048,9.69234392,3153.3,3153.2,0.11620341]
[1720710249207,4.26876392,3153.3,3153.2,0.11620341]
[1720710249728,4.26882989,3153.3,3153.2,0.11620341]
[1720710250430,7.44010989,3153.3,3153.2,0.11620341]
[1720710251154,10.61056285,3153.3,3153.2,0.11620341]
[1720710251805,7.43928285,3153.3,3153.2,0.11620341]
[1720710252322,10.61056285,3153.3,3153.2,0.11620341]
[1720710252936,6.3409035,3153.3,3153.2,0.11620341]
[1720710253139,12.94587869,3153.3,3153.2,0.11620341]
[1720710253384,3.17196,3152.7,3151.9,9.7059]
[1720710253661,3.17196,3152.7,3152.0,0.04651428]
[1720710253662,4.27052346,3152.6,3152.0,0.04651428]
[1720710253857,1.09848346,3152.5,3152.0,0.04651428]
[1720710254865,4.27058346,3152.5,3152.0,0.04651428]
[1720710255154,1.09848346,3152.4,3152.0,0.04651428]
[1720710255361,4.27067346,3152.4,3152.0,0.04651428]
[1720710255570,1.09848346,3152.3,3152.0,0.04651428]
[1720710255723,0.0793155,3152.2,3152.0,0.04651428]
[1720710255928,1.09848346,3152.1,3151.7,0.00082161]
[1720710256124,1.09862259,3152.0,3151.7,0.00082161]
[1720710256468,3.17241,3152.2,3151.7,0.00082161]
[1720710256469,1.09862259,3151.9,3151.7,0.00082161]
[1720710256679,0.3175,3153.1,3151.7,0.00082161]
[1720710256680,0.07932072,3151.8,3151.7,0.00082161]
[1720710256823,3.17274,3151.9,3151.7,0.00082161]
[1720710257023,1.09862259,3151.8,3151.7,0.00082161]
[1720710257436,1.09862259,3152.0,3151.7,0.00082161]
[1720710257634,3.17191,3152.7,3151.7,0.00082161]
[1720710257635,1.09862259,3151.9,3151.7,0.00082161]
[1720710257865,3.17215,3152.5,3151.7,0.00082161]
[1720710257866,1.09862259,3152.4,3151.7,0.00082161]
[1720710258030,1.09862259,3152.3,3151.7,0.00082161]
[1720710258234,1.09862259,3152.2,3151.8,3.78720778]
[1720710258430,3.17194,3152.7,3151.8,3.78720778]
[1720710258636,1.09850882,3152.6,3151.8,3.72375595]
[1720710258829,4.27058882,3152.5,3151.8,3.72375595]
[1720710259145,1.09850882,3152.4,3151.8,3.72375595]
[1720710259324,1.09854079,3152.3,3152.0,3.17253]
[1720710259528,3.17133,3153.3,3152.3,3.17223]
[1720710259758,1.0984003,3153.2,3152.3,3.17223]
[1720710259963,1.0984003,3153.1,3152.3,3.23566732]
[1720710260206,1.0984003,3153.0,3152.3,6.40787732]
[1720710260402,1.0984003,3152.9,3152.4,0.87148773]
[1720710260611,1.0984003,3152.8,3152.5,0.06343708]
[1720710260754,2.46361245,3154.1,3152.5,0.06343708]
[1720710260957,1.09821565,3154.0,3153.2,0.00082868]
[1720710261161,1.09821565,3153.9,3153.2,0.00082868]
[1720710261396,1.09821565,3153.8,3153.2,0.32441198]
[1720710261609,0.3175,3154.4,3153.2,0.32441198]
[1720710261610,1.09821565,3153.7,3153.2,3.49574198]
[1720710261899,0.98863572,3154.6,3153.2,3.49574198]
[1720710261900,1.09821565,3153.6,3153.2,3.49574198]
[1720710262195,1.09821565,3153.5,3153.2,3.49571198]
[1720710262392,0.0792744,3154.0,3153.2,0.32441198]
[1720710262597,6.34087,3154.2,3153.2,3.17219868]
[1720710262767,1.09808012,3154.1,3153.3,0.04640202]
[1720710262974,3.16972994,3154.1,3153.3,0.04640202]
[1720710263176,1.09805704,3154.0,3153.3,0.04640202]
[1720710263373,1.09805704,3153.9,3153.3,0.04640202]
[1720710263574,1.09805704,3153.8,3153.3,0.04640202]
[1720710263860,1.09805704,3153.7,3153.3,0.32186007]
[1720710264074,1.09805704,3153.6,3153.4,0.04637835]
[1720710264284,1.09805704,3153.7,3153.4,0.04637835]
[1720710264488,1.09805704,3153.6,3153.2,0.00082868]
[1720710264686,1.09805704,3153.6,3153.5,0.04623974]
[1720710265002,4.26908704,3153.6,3153.2,0.00082868]
[1720710265166,3.17118,3153.4,3153.3,0.04628708]
[1720710265361,9.48464134,3153.4,3153.3,0.04628708]
[1720710265596,3.1423069,3153.4,3153.2,0.00082868]
[1720710265896,0.43483699,3153.5,3153.2,0.00082868]
[1720710265897,2.48199272,3153.3,3153.2,0.00082868]
[1720710266095,1.09825825,3153.3,3153.2,0.00082868]
[1720710266492,1.09825825,3153.3,3153.2,2.47652868]
[1720710266677,0.66027546,3153.8,3153.2,3.35848455]
[1720710267011,3.14187185,3153.7,3153.2,2.47652868]
[1720710267232,3.14187185,3153.6,3153.2,2.47652868]
[1720710267515,2.48159639,3153.5,3153.2,0.00082868]
[1720710267680,1.0980515,3153.4,3153.2,0.00082868]
[1720710268084,1.75832696,3153.5,3153.2,0.00082868]
[1720710268327,1.0980515,3153.4,3153.2,0.63521755]
[1720710268488,1.32055093,3153.9,3153.4,2.3326]
[1720710268489,0.66027546,3153.9,3153.4,2.3326]
[1720710268687,2.48142436,3153.8,3153.4,5.50377]
[1720710268890,0.66027546,3154.0,3153.4,2.3326]
[1720710269220,0.66027546,3153.7,3153.4,2.3326]
[1720710269521,2.4815146,3153.6,3153.4,2.3326]
[1720710269824,0.66027546,3153.7,3153.4,2.88307887]
[1720710270008,0.66027546,3153.8,3153.4,2.88307887]
[1720710270196,3.14184337,3153.7,3153.4,2.88307887]
[1720710270394,1.38352901,3153.6,3153.4,2.88307887]
[1720710270717,2.04380447,3153.6,3153.2,0.00082868]
[1720710270938,2.04380447,3153.5,3153.2,0.00082868]
[1720710271124,1.38359492,3153.4,3153.2,0.00082868]
[1720710271482,0.66027546,3153.5,3153.2,0.00082868]
[1720710272115,0.66027546,3153.6,3153.2,0.00082868]
[1720710272351,2.04383628,3153.5,3153.2,0.00082868]
[1720710272488,1.38356082,3153.4,3153.2,0.00082868]
[1720710272693,0.66027546,3153.5,3153.2,0.00082868]
[1720710272928,1.38356028,3153.4,3153.2,0.00082868]
[1720710274029,0.9904132,3153.6,3153.3,3.17123]
[1720710274030,0.66027546,3153.6,3153.3,3.17123]
[1720710274330,0.66027546,3153.8,3153.6,3.17097]
[1720710274492,0.66027546,3153.9,3153.6,6.34187]
[1720710274700,1.38338489,3153.8,3153.7,2.607197]
[1720710275052,0.66027546,3153.9,3153.7,2.607197]
[1720710275252,0.66027546,3153.9,3153.7,2.2901]
[1720710275448,2.04365357,3153.8,3153.7,2.2901]
[1720710275749,0.66027546,3153.9,3153.7,2.2901]
[1720710275905,0.66027546,3154.0,3153.7,2.2901]
[1720710276237,0.66027546,3154.1,3153.7,2.35350994]
[1720710276550,0.66027546,3154.1,3154.0,3.17057]
[1720710276753,0.66027546,3154.5,3154.1,3.17047]
[1720710277047,0.9904132,3154.6,3154.4,3.17016]
[1720710277048,0.66027546,3154.6,3154.4,3.17016]
[1720710277544,0.66027546,3154.7,3154.4,3.17016]
[1720710278304,0.66027546,3154.7,3154.4,3.23355715]
[1720710278627,3.16927,3155.3,3154.4,3.54427916]
[1720710278950,0.66272649,3154.7,3154.4,3.17016]
[1720710279848,0.66272649,3154.7,3154.4,3.17011]
[1720710280209,0.66272649,3154.7,3154.2,3.17028]
[1720710280554,0.66272649,3154.7,3154.0,3.17051]
[1720710280718,3.91190848,3154.7,3153.8,3.17076]
[1720710281053,0.66272649,3154.6,3153.7,9.5801]
[1720710281234,0.66272649,3154.6,3153.7,2.2901]
[1720710281540,0.66272649,3154.6,3153.7,5.4609]
[1720710281709,0.66272649,3154.6,3153.8,3.17077]
[1720710281905,0.66272649,3154.6,3153.9,3.17058]
[1720710282255,0.07925587,3154.5,3153.7,2.2901]
[1720710282465,0.74133533,3154.5,3153.7,2.2901]
[1720710282751,0.66207946,3154.3,3153.7,2.2901]
[1720710282917,0.66207946,3154.3,3153.6,3.17095]
[1720710283105,0.66126422,3154.3,3153.6,3.17095]
[1720710283309,0.07926202,3154.2,3153.4,3.1711]
[1720710283618,0.07926202,3154.2,3153.3,9.5799]
[1720710283802,4.16356919,3154.2,3153.3,12.7511]
[1720710284003,3.17045,3154.2,3153.3,12.7511]
[1720710284205,0.99311919,3154.1,3153.3,12.7511]
[1720710284443,5.1260197,3154.1,3153.3,10.4612]
[1720710284614,0.8831372,3154.1,3153.3,10.4612]
[1720710284819,4.24286251,3154.1,3153.3,7.29]
[1720710285350,1.09804735,3154.0,3153.3,7.29]
[1720710285524,0.99311919,3154.1,3153.3,10.46122]
[1720710285844,0.99311919,3154.3,3153.3,7.29]
[1720710286047,0.99311919,3154.4,3153.5,3.17098]
[1720710286205,0.99311919,3154.4,3153.7,3.17086]
[1720710286206,1.09793516,3154.3,3153.7,3.17086]
[1720710286410,0.99311919,3154.5,3153.7,6.34166]
[1720710286706,1.09785294,3154.4,3153.7,6.34166]
[1720710286908,1.09785294,3154.3,3153.7,6.34166]
[1720710287135,1.09785294,3154.4,3153.7,6.34166]
[1720710287337,0.99311919,3154.5,3154.0,3.17049]
[1720710287646,0.99311919,3154.8,3154.1,3.17045]
[1720710287858,1.09772327,3154.7,3154.1,3.17045]
[1720710288023,1.09772327,3154.6,3154.1,3.17045]
[1720710288224,1.09772327,3154.7,3154.1,3.17045]
[1720710288453,0.99311919,3154.9,3154.1,3.17045]
[1720710288611,1.64642227,3154.8,3154.1,3.17045]
[1720710288955,1.09771303,3154.7,3154.3,6.34038]
[1720710289118,1.09771303,3154.6,3154.3,6.40377855]
[1720710289310,0.99311919,3154.9,3154.3,3.17018]
[1720710289510,1.09770192,3154.8,3154.3,3.17018]
[1720710289751,1.09770192,3154.7,3154.3,6.34039]
[1720710289951,1.09770192,3154.7,3154.4,3.17015]
[1720710289952,0.3,3154.7,3154.4,3.17015]
[1720710290129,1.09770192,3154.6,3154.4,3.17015]
[1720710290328,0.3,3154.7,3154.4,3.17015]
[1720710290723,1.09767291,3154.6,3154.4,3.17015]
[1720710290966,0.3,3154.7,3154.4,3.17015]
[1720710291251,0.3,3154.7,3153.8,3.17072]
[1720710291252,1.09769393,3154.6,3153.8,3.1707]
[1720710291451,1.09771798,3154.5,3153.9,4.5972386]
[1720710291755,0.3,3154.7,3153.9,4.5972386]
[1720710291957,1.09780038,3154.4,3153.7,7.924166]
[1720710292132,1.09780038,3154.3,3153.7,3.805026]
[1720710292461,1.09786627,3154.2,3153.9,3.17061]
[1720710292760,0.3,3154.7,3153.8,3.17068]
[1720710292918,0.3,3154.7,3154.0,3.17052]
[1720710292919,1.09780284,3154.6,3154.0,3.17052]
[1720710293120,1.09780284,3154.5,3154.0,3.17052]
[1720710293375,1.09780284,3154.4,3154.0,3.17052]
[1720710293654,0.96178281,3154.7,3154.0,3.17052]
[1720710293813,1.09779172,3154.6,3154.0,3.17052]
[1720710294017,1.09779172,3154.5,3154.0,0.317052]
[1720710294313,0.3,3154.7,3154.2,3.17028]
[1720710294651,0.3,3154.7,3154.2,6.34059]
[1720710294652,1.09770787,3154.6,3154.2,6.34059]
[1720710294848,1.09771549,3154.5,3154.2,3.17028]
[1720710295054,0.3,3154.7,3154.2,3.17028]
[1720710295441,1.09774542,3154.6,3154.2,3.17028]
[1720710295646,1.09774542,3154.5,3154.2,3.17028]
[1720710295820,0.3,3154.7,3154.2,6.34059]
[1720710296155,1.097707,3154.6,3154.2,3.17028]
[1720710296328,1.097707,3154.5,3154.2,6.34059]
[1720710296539,1.097707,3154.6,3154.2,6.34059]
[1720710296859,0.3,3154.7,3154.6,6.33994]
[1720710297062,0.3,3154.7,3154.6,6.95332533]
[1720710298077,0.3,3154.7,3154.6,10.12329533]
[1720710298258,0.3,3154.7,3154.6,12.48519533]
[1720710298554,0.66178281,3155.9,3154.6,9.11125533]
[1720710298740,0.66178281,3156.5,3155.7,3.16886]
[1720710298948,1.09710757,3156.4,3155.9,3.16865]
[1720710299175,1.09710757,3156.3,3155.7,3.16879]
[1720710299479,1.09710757,3156.2,3155.7,3.16879]
[1720710299653,1.09710757,3156.4,3155.7,3.16879]
[1720710300037,1.09710757,3156.4,3155.7,6.33759]